bitfinex-derivatives/quotes_BTCF0:USTF0_20210109
["timestamp","ask_amount","ask_price","bid_price","bid_amount"]
[1610215611881,0.13632608,40616.0,40614.0,0.02431241]
[1610215612281,0.13632608,40616.0,40615.0,0.02431247]
[1610215612682,0.13632608,40616.0,40614.0,0.07239457]
[1610215612883,0.13632608,40616.0,40615.0,0.00025518]
[1610215613082,0.13632608,40616.0,40615.0,0.02431208]
[1610215613285,0.13632608,40616.0,40614.0,0.07239422]
[1610215613483,0.13632608,40616.0,40615.0,3.82551243]
[1610215614083,0.13632608,40616.0,40615.0,3.87359441]
[1610215615787,0.13632608,40616.0,40615.0,4.00992049]
[1610215620393,0.13632608,40616.0,40615.0,4.08430029]
[1610215621494,0.13632608,40616.0,40615.0,4.00992049]
[1610215621694,0.13632608,40616.0,40615.0,4.08430072]
[1610215623997,0.24324564,40626.0,40615.0,4.08430072]
[1610215624397,0.24324564,40626.0,40616.0,0.0629295]
[1610215624698,0.24324564,40626.0,40617.0,2.39979757]
[1610215625198,0.24324564,40626.0,40618.0,0.06292634]
[1610215625598,0.24324564,40626.0,40617.0,0.06292499]
[1610215625797,0.24324564,40626.0,40622.0,0.13632608]
[1610215626197,0.24324564,40626.0,40625.0,0.4173]
[1610215626398,0.24324564,40626.0,40625.0,0.48022337]
[1610215626697,0.24324564,40626.0,40625.0,0.43759573]
[1610215626897,0.24324564,40626.0,40625.0,0.48022342]
[1610215627700,0.37957172,40626.0,40625.0,0.48022342]
[1610215628403,0.24324564,40626.0,40625.0,0.48022342]
[1610215628604,0.24324564,40626.0,40625.0,0.43759573]
[1610215628804,0.24324564,40626.0,40625.0,0.48021695]
[1610215629002,0.24324564,40626.0,40625.0,0.43759573]
[1610215630804,0.07237,40649.0,40625.0,0.43759573]
[1610215631004,0.07237,40649.0,40625.0,0.02029573]
[1610215631208,0.2975,40657.0,40637.0,2.7528]
[1610215631405,0.2975,40657.0,40629.0,0.09904]
[1610215631605,0.2975,40657.0,40638.0,0.02004347]
[1610215631807,0.37033,40657.0,40645.0,0.13632608]
[1610215632005,0.37033,40657.0,40646.0,2.9636]
[1610215632307,0.37033,40657.0,40646.0,2.9638451]
[1610215632505,0.37033,40657.0,40647.0,0.0002451]
[1610215633808,0.13632608,40648.0,40647.0,0.0002451]
[1610215634910,0.13632608,40648.0,40647.0,0.02297131]
[1610215635311,0.13632608,40648.0,40647.0,0.0002451]
[1610215635511,0.37033,40657.0,40647.0,0.0002451]
[1610215635912,0.07283,40657.0,40656.0,4.11512608]
[1610215636512,0.07283,40657.0,40656.0,4.1153774]
[1610215637013,0.2824,40681.0,40656.0,4.1153774]
[1610215637214,0.2824,40681.0,40656.0,0.1365774]
[1610215637414,0.2824,40681.0,40668.0,4.0601]
[1610215637614,0.2824,40681.0,40674.0,3.3785]
[1610215637817,0.13632608,40675.0,40674.0,3.3785]
[1610215638018,0.20923608,40675.0,40673.0,0.13632608]
[1610215638219,0.20923608,40675.0,40674.0,0.00025128]
[1610215638617,0.20923608,40675.0,40674.0,2.85015128]
[1610215641220,0.13632608,40675.0,40674.0,2.85015128]
[1610215641621,0.2768,40698.0,40674.0,2.85015128]
[1610215641822,0.2768,40698.0,40694.0,0.13632608]
[1610215642021,0.2768,40698.0,40696.0,2.9559]
[1610215642222,0.2999,40706.0,40696.0,2.9559]
[1610215643820,0.13632608,40697.0,40696.0,2.9559]
[1610215644022,0.13632608,40697.0,40686.0,0.13632608]
[1610215645822,0.1556,40701.0,40691.0,0.13632608]
[1610215646021,0.1556,40701.0,40692.0,0.5227]
[1610215646222,0.09013,40702.0,40692.0,0.5227]
[1610215647627,0.09013,40702.0,40683.0,0.08219]
[1610215647827,0.09013,40702.0,40686.0,0.13632608]
[1610215648026,0.09013,40702.0,40689.0,3.394]
[1610215648628,0.09013,40702.0,40683.0,0.08219]
[1610215649028,0.09013,40702.0,40674.0,0.07731]
[1610215649229,0.09013,40702.0,40667.0,3.8537]
[1610215649827,0.13632608,40668.0,40667.0,3.8537]
[1610215650027,0.13632608,40668.0,40665.0,0.10118]
[1610215650428,0.13632608,40668.0,40657.0,0.13632608]
[1610215650828,0.13632608,40668.0,40658.0,0.00025121]
[1610215651028,0.13632608,40668.0,40659.0,3.6563]
[1610215651430,0.13632608,40668.0,40660.0,0.00025119]
[1610215651833,0.13632608,40675.0,40667.0,0.13632608]
[1610215652030,0.13632608,40675.0,40667.0,0.21583608]
[1610215652232,0.1556,40699.0,40674.0,2.9718]
[1610215652832,0.1556,40705.0,40674.0,2.9718]
[1610215653434,0.4286,40724.0,40674.0,2.9718]
[1610215653933,0.4286,40724.0,40692.0,0.13632608]
[1610215655935,0.13632608,40693.0,40692.0,0.13632608]
[1610215657337,0.13632608,40693.0,40682.0,0.0805]
[1610215657837,3.7008,40720.0,40687.0,0.13632608]
[1610215658237,3.7008,40720.0,40682.0,0.0805]
[1610215658838,3.7008,40720.0,40676.0,3.6194]
[1610215659039,0.1556,40701.0,40676.0,3.6194]
[1610215659640,0.1556,40719.0,40676.0,3.6194]
[1610215659841,0.1556,40719.0,40683.0,0.13632608]
[1610215660242,0.1556,40719.0,40692.0,3.3724]
[1610215661843,0.13632608,40693.0,40692.0,3.3724]
[1610215665447,0.13632608,40693.0,40692.0,3.37265108]
[1610215665850,0.1556,40719.0,40692.0,3.37265108]
[1610215665851,0.13632608,40698.0,40692.0,3.37265108]
[1610215666249,0.13632608,40698.0,40693.0,0.00025108]
[1610215667951,0.13632608,40698.0,40697.0,0.13632608]
[1610215668351,0.13632608,40698.0,40697.0,0.13657714]
[1610215670754,0.13632608,40698.0,40697.0,0.00025106]
[1610215670954,0.13632608,40698.0,40689.0,0.00025106]
[1610215671354,0.13632608,40698.0,40697.0,0.00025106]
[1610215671554,0.13632608,40698.0,40690.0,0.00025106]
[1610215671757,0.13632608,40698.0,40697.0,0.00025106]
[1610215672155,0.13632608,40698.0,40691.0,0.00025106]
[1610215672360,0.13632608,40698.0,40697.0,0.00025106]
[1610215672558,0.13632608,40698.0,40692.0,0.00025109]
[1610215672956,0.13632608,40698.0,40690.0,0.4071]
[1610215672957,0.13632608,40698.0,40697.0,0.00025109]
[1610215673158,0.13632608,40698.0,40693.0,0.00025111]
[1610215673357,0.13632608,40698.0,40690.0,0.4071]
[1610215673761,0.13632608,40698.0,40694.0,0.00025111]
[1610215673959,0.13632608,40698.0,40690.0,0.4071]
[1610215673960,0.13632608,40698.0,40691.0,0.00025111]
[1610215674159,0.13632608,40698.0,40695.0,0.00025111]
[1610215674558,0.13632608,40698.0,40690.0,0.4071]
[1610215674559,0.13632608,40698.0,40692.0,0.00025111]
[1610215674759,0.13632608,40698.0,40696.0,0.00025111]
[1610215674965,0.13632608,40698.0,40693.0,0.00025111]
[1610215675161,0.13632608,40698.0,40693.0,3.64935111]
[1610215675360,0.13632608,40698.0,40697.0,0.00025111]
[1610215675560,0.13632608,40698.0,40694.0,0.00025111]
[1610215675763,0.13632608,40698.0,40697.0,0.00025111]
[1610215676161,0.13632608,40698.0,40695.0,0.00025111]
[1610215676361,0.13632608,40698.0,40697.0,0.00025111]
[1610215676562,0.13632608,40698.0,40696.0,0.00025111]
[1610215676961,0.13632608,40698.0,40697.0,0.00025111]
[1610215677363,0.13632608,40698.0,40685.0,3.3061]
[1610215677764,0.13632608,40698.0,40697.0,0.00025111]
[1610215677964,0.13632608,40698.0,40686.0,0.00025111]
[1610215678164,0.13632608,40698.0,40697.0,0.00025111]
[1610215678564,0.13632608,40698.0,40687.0,0.00025111]
[1610215678764,0.13632608,40698.0,40697.0,0.00025111]
[1610215678967,0.13632608,40698.0,40686.0,0.02294374]
[1610215679265,0.13632608,40698.0,40697.0,0.00025111]
[1610215679465,0.13632608,40698.0,40687.0,0.00025111]
[1610215679865,0.13632608,40688.0,40686.0,0.02294374]
[1610215680069,0.13632608,40688.0,40686.0,0.02269263]
[1610215680267,0.13632608,40688.0,40687.0,0.00025111]
[1610215680668,0.13632608,40688.0,40686.0,0.02294374]
[1610215680868,0.13632608,40688.0,40687.0,0.00025111]
[1610215681069,0.13632608,40688.0,40686.0,0.02294372]
[1610215681371,0.13632608,40688.0,40687.0,0.00025109]
[1610215681871,0.13632608,40688.0,40686.0,0.02294372]
[1610215682271,0.13632608,40688.0,40687.0,0.00025111]
[1610215682675,0.13632608,40688.0,40686.0,0.02294374]
[1610215683071,0.13632608,40688.0,40687.0,0.00025111]
[1610215683471,0.13632608,40688.0,40686.0,0.0229482]
[1610215683873,0.13632608,40688.0,40687.0,0.00025557]
[1610215684273,0.13632608,40688.0,40686.0,0.0229482]
[1610215684473,0.13632608,40688.0,40687.0,0.00025557]
[1610215684872,0.13632608,40688.0,40686.0,0.0229482]
[1610215685074,0.13632608,40688.0,40686.0,0.02269263]
[1610215685275,0.13632608,40688.0,40687.0,0.00025557]
[1610215685675,0.13632608,40688.0,40686.0,0.0229482]
[1610215685875,0.13632608,40688.0,40687.0,0.00025557]
[1610215686475,0.13632608,40688.0,40686.0,0.0229482]
[1610215686676,0.13632608,40688.0,40687.0,0.00025557]
[1610215687179,0.13632608,40688.0,40686.0,0.02294818]
[1610215687380,0.13632608,40688.0,40687.0,0.00025555]
[1610215687782,0.13632608,40688.0,40686.0,0.0713187]
[1610215687980,0.13632608,40688.0,40687.0,0.13632608]
[1610215688580,0.13632608,40688.0,40687.0,0.16084351]
[1610215691184,0.13632608,40688.0,40687.0,4.09984351]
[1610215691685,0.13632608,40688.0,40687.0,4.14820925]
[1610215692087,0.13632608,40688.0,40687.0,4.24099925]
[1610215696695,0.13632608,40688.0,40687.0,4.19263351]
[1610215697594,0.13632608,40688.0,40687.0,4.05630743]
[1610215702900,0.13632608,40688.0,40687.0,0.11730743]
[1610215703303,0.13632608,40688.0,40687.0,0.02451743]
[1610215703702,0.13632608,40688.0,40687.0,0.00025553]
[1610215704103,0.13632608,40688.0,40671.0,0.02162141]
[1610215704502,0.13632608,40688.0,40668.0,0.02162175]
[1610215704702,0.13632608,40688.0,40672.0,0.02162344]
[1610215704703,0.21034608,40688.0,40672.0,0.02162344]
[1610215704902,0.21034608,40688.0,40669.0,0.02162433]
[1610215705301,0.21034608,40688.0,40673.0,0.02162503]
[1610215705502,0.21034608,40688.0,40670.0,0.02162571]
[1610215705702,0.21034608,40688.0,40674.0,0.02162615]
[1610215706009,0.13632608,40675.0,40671.0,0.02162615]
[1610215706204,3.10402608,40675.0,40656.0,0.07558]
[1610215706407,3.10402608,40675.0,40652.0,2.34024798]
[1610215706604,3.10402608,40675.0,40672.0,0.02162894]
[1610215706806,3.10402608,40675.0,40653.0,0.06625104]
[1610215707006,3.10402608,40675.0,40673.0,0.00024918]
[1610215707407,0.13632608,40675.0,40653.0,0.02162883]
[1610215707607,0.13632608,40675.0,40674.0,0.00024918]
[1610215707807,0.13632608,40675.0,40654.0,0.0216297]
[1610215708008,0.13632608,40655.0,40654.0,0.0216297]
[1610215708208,0.13632608,40655.0,40653.0,0.02163069]
[1610215708408,0.13632608,40655.0,40654.0,0.02163146]
[1610215709009,0.13632608,40655.0,40653.0,0.02163175]
[1610215709210,0.13632608,40655.0,40654.0,0.0002492]
[1610215709810,0.13632608,40655.0,40653.0,0.00024923]
[1610215710010,0.13632608,40655.0,40654.0,0.00024923]
[1610215710612,0.13632608,40655.0,40653.0,0.00024926]
[1610215710815,0.13632608,40655.0,40634.0,0.10003]
[1610215710816,0.24434608,40655.0,40654.0,0.00024926]
[1610215711012,0.24434608,40655.0,40635.0,0.00024926]
[1610215711215,0.24434608,40655.0,40634.0,0.10003]
[1610215711613,0.24434608,40655.0,40636.0,0.00024927]
[1610215711815,0.24434608,40655.0,40635.0,0.00024927]
[1610215712014,0.13632608,40636.0,40634.0,0.10003]
[1610215712616,0.13632608,40636.0,40635.0,0.00024927]
[1610215713819,4.23462608,40636.0,40635.0,0.00024927]
[1610215714216,4.23462608,40636.0,40628.0,0.00024933]
[1610215714416,4.23462608,40636.0,40635.0,0.00024933]
[1610215714819,4.23462608,40636.0,40626.0,0.00024933]
[1610215715019,4.23462608,40636.0,40635.0,0.00024936]
[1610215715220,4.23462608,40636.0,40627.0,0.00024936]
[1610215715621,4.23462608,40636.0,40619.0,0.00024938]
[1610215715922,4.23462608,40636.0,40628.0,0.00024938]
[1610215716124,0.13632608,40629.0,40620.0,0.00024938]
[1610215716324,0.13632608,40629.0,40616.0,0.07917]
[1610215716522,0.13632608,40629.0,40621.0,0.00024939]
[1610215716922,0.13632608,40629.0,40617.0,0.00024939]
[1610215717123,0.13632608,40629.0,40622.0,0.00024941]
[1610215717323,0.13632608,40629.0,40617.0,0.00024941]
[1610215717724,0.13632608,40629.0,40616.0,0.07917]
[1610215717924,0.13632608,40629.0,40618.0,0.00024941]
[1610215718128,0.10079,40635.0,40616.0,0.07917]
[1610215718129,0.13632608,40619.0,40617.0,0.00024941]
[1610215718325,0.10079,40635.0,40617.0,0.00024941]
[1610215718525,4.0983,40636.0,40619.0,0.00024941]
[1610215718726,4.0983,40636.0,40618.0,0.00024941]
[1610215718929,4.0983,40636.0,40617.0,0.00024941]
[1610215719325,4.0983,40636.0,40619.0,0.00024941]
[1610215719526,4.0983,40636.0,40618.0,0.00024941]
[1610215719726,0.2959,40654.0,40617.0,0.00024941]
[1610215719927,1.10995,40668.0,40618.0,3.1546]
[1610215720127,0.13632608,40652.0,40643.0,0.13632608]
[1610215721629,0.13632608,40652.0,40644.0,0.00024923]
[1610215721829,0.13632608,40652.0,40644.0,0.08647923]
[1610215722229,0.07535,40677.0,40651.0,0.13632608]
[1610215722431,0.563,40688.0,40651.0,0.13632608]
[1610215722929,0.563,40688.0,40652.0,0.00024918]
[1610215724130,0.563,40688.0,40667.0,0.13632608]
[1610215725632,0.2728,40688.0,40667.0,0.13632608]
[1610215725832,0.2728,40688.0,40668.0,0.00024915]
[1610215726233,0.4835,40686.0,40682.0,0.13632608]
[1610215726433,0.4835,40686.0,40668.0,0.00024915]
[1610215726633,0.1556,40699.0,40665.0,0.07746]
[1610215726832,4.0392,40678.0,40665.0,0.07746]
[1610215727033,4.0392,40678.0,40669.0,0.00024914]
[1610215727233,4.0392,40678.0,40666.0,0.00024917]
[1610215727434,4.0392,40678.0,40665.0,0.07746]
[1610215728237,0.13632608,40666.0,40665.0,0.07746]
[1610215728837,0.13632608,40666.0,40665.0,0.0777092]
[1610215730137,0.13632608,40666.0,40665.0,0.21403528]
[1610215731238,3.7849,40691.0,40665.0,0.21403528]
[1610215731639,3.7849,40691.0,40666.0,0.00024914]
[1610215732238,0.13632608,40672.0,40666.0,0.00024914]
[1610215734141,3.7849,40691.0,40670.0,0.13632608]
[1610215734541,3.7849,40691.0,40671.0,0.00024914]
[1610215735441,3.7849,40691.0,40666.0,0.00024914]
[1610215735640,3.7849,40691.0,40672.0,0.00024914]
[1610215735841,3.7849,40691.0,40667.0,0.00024914]
[1610215736141,0.13632608,40668.0,40666.0,0.00024914]
[1610215736540,0.13632608,40668.0,40665.0,0.07746]
[1610215736742,0.13632608,40668.0,40667.0,0.00024915]
[1610215736942,0.13632608,40668.0,40667.0,0.10665]
[1610215737242,0.13632608,40668.0,40667.0,0.10689915]
[1610215739643,3.7849,40691.0,40667.0,0.10689915]
[1610215739644,3.5046,40691.0,40667.0,0.10689915]
[1610215739844,0.08555,40704.0,40667.0,0.10689915]
[1610215740044,0.08555,40704.0,40668.0,2.9764]
[1610215740245,0.13632608,40684.0,40683.0,0.13632608]
[1610215741645,0.13632608,40684.0,40668.0,2.9764]
[1610215741846,0.13632608,40684.0,40667.0,0.10665]
[1610215742050,0.13632608,40684.0,40669.0,0.0002491]
[1610215742247,3.8478,40701.0,40678.0,0.13632608]
[1610215742446,0.2797,40713.0,40678.0,0.21976608]
[1610215742847,0.2797,40713.0,40679.0,0.0002491]
[1610215744248,0.2797,40713.0,40686.0,0.13632608]
[1610215744950,0.2797,40713.0,40678.0,0.08344]
[1610215745148,0.2797,40713.0,40679.0,0.00024488]
[1610215746249,0.2797,40713.0,40682.0,0.13632608]
[1610215746852,0.2797,40713.0,40683.0,0.00024488]
[1610215747053,0.2797,40713.0,40678.0,0.08344]
[1610215747451,0.2797,40713.0,40679.0,0.02003333]
[1610215747652,0.2797,40713.0,40679.0,0.12221824]
[1610215748052,0.2797,40713.0,40680.0,0.00024491]
[1610215748252,0.13632608,40681.0,40680.0,0.00024491]
[1610215749253,0.13632608,40681.0,40680.0,0.02027851]
[1610215749454,0.13632608,40681.0,40680.0,0.00024491]
[1610215749656,0.13632608,40681.0,40680.0,0.02027845]
[1610215754259,0.13632608,40681.0,40680.0,0.15660453]
[1610215754660,0.13632608,40681.0,40680.0,0.02027845]
[1610215754863,4.79802608,40681.0,40680.0,0.00024491]
[1610215755062,3.29802608,40681.0,40680.0,0.00024491]
[1610215756263,3.29802608,40681.0,40670.0,0.00024507]
[1610215756462,3.29802608,40681.0,40680.0,0.00024507]
[1610215756863,3.29802608,40681.0,40658.0,0.00024507]
[1610215757061,3.29802608,40681.0,40657.0,0.07573]
[1610215757262,3.29802608,40681.0,40659.0,0.00024506]
[1610215757863,3.29802608,40681.0,40658.0,0.00024506]
[1610215758063,3.29802608,40681.0,40657.0,0.07573]
[1610215758064,3.29802608,40681.0,40660.0,0.00024506]
[1610215758263,0.13632608,40661.0,40660.0,0.00024506]
[1610215758464,0.13632608,40661.0,40659.0,0.00024506]
[1610215758663,0.13632608,40661.0,40660.0,0.00024506]
[1610215759262,0.13632608,40661.0,40645.0,0.02004013]
[1610215759263,0.13632608,40661.0,40645.0,0.02028519]
[1610215759464,0.13632608,40661.0,40660.0,0.00024506]
[1610215759665,0.13632608,40661.0,40653.0,3.71123]
[1610215760065,0.13632608,40661.0,40660.0,0.00024504]
[1610215760268,0.13632608,40661.0,40659.0,0.13632608]
[1610215760468,0.13632608,40661.0,40660.0,0.00024501]
[1610215761867,0.13632608,40661.0,40654.0,0.00024501]
[1610215762067,0.13632608,40661.0,40660.0,0.00024501]
[1610215762267,0.13632608,40661.0,40653.0,0.07483]
[1610215762268,0.13632608,40661.0,40655.0,0.00024501]
[1610215762668,0.13632608,40661.0,40660.0,0.00024501]
[1610215762870,0.13632608,40661.0,40656.0,0.00024504]
[1610215763069,0.13632608,40661.0,40660.0,0.00024504]
[1610215763670,0.13632608,40661.0,40654.0,0.00024504]
[1610215763870,0.13632608,40661.0,40653.0,0.07483]
[1610215764271,2.8215,40672.0,40655.0,0.00024506]
[1610215764471,2.8215,40672.0,40654.0,0.00024506]
[1610215764671,2.8215,40672.0,40656.0,0.00024506]
[1610215765070,2.8215,40672.0,40654.0,0.00024506]
[1610215765271,2.8215,40672.0,40657.0,0.00024506]
[1610215765473,2.8215,40672.0,40655.0,0.00024506]
[1610215765875,2.8215,40672.0,40654.0,0.00024506]
[1610215766074,2.8215,40672.0,40656.0,0.00024506]
[1610215766274,0.13632608,40657.0,40655.0,0.00024506]
[1610215766674,0.13632608,40657.0,40653.0,0.07483]
[1610215766873,0.13632608,40657.0,40656.0,0.00024507]
[1610215767074,0.13632608,40657.0,40648.0,0.00024507]
[1610215767475,0.13632608,40657.0,40656.0,0.00024507]
[1610215767673,0.13632608,40657.0,40649.0,0.00024507]
[1610215767875,0.13632608,40657.0,40656.0,0.00024507]
[1610215768076,0.13632608,40657.0,40650.0,0.00024507]
[1610215768276,0.13632608,40651.0,40650.0,0.00024507]
[1610215768475,0.13632608,40651.0,40648.0,0.00024507]
[1610215768678,0.13632608,40651.0,40650.0,0.00024507]
[1610215768875,0.13632608,40651.0,40649.0,0.00024505]
[1610215769276,0.13632608,40651.0,40650.0,0.00024505]
[1610215769475,0.13632608,40651.0,40648.0,0.00024505]
[1610215769877,0.13632608,40651.0,40650.0,0.00024505]
[1610215770079,0.13632608,40651.0,40649.0,0.00024503]
[1610215770278,0.13632608,40651.0,40650.0,0.00024503]
[1610215770879,0.13632608,40651.0,40648.0,0.00024503]
[1610215771480,0.13632608,40651.0,40639.0,2.9851]
[1610215771680,0.13632608,40651.0,40649.0,0.00024504]
[1610215771880,0.13632608,40651.0,40649.0,0.09194504]
[1610215772180,0.13632608,40651.0,40649.0,0.0917]
[1610215772382,0.13632608,40651.0,40650.0,0.00024504]
[1610215773382,0.58732608,40651.0,40650.0,0.00024504]
[1610215774384,0.58732608,40651.0,40640.0,0.00024509]
[1610215774582,0.58732608,40651.0,40639.0,0.09097]
[1610215774783,0.58732608,40651.0,40641.0,0.00024512]
[1610215775183,0.58732608,40651.0,40640.0,0.00024514]
[1610215775383,0.58732608,40651.0,40642.0,0.00024516]
[1610215775586,0.58732608,40651.0,40641.0,0.00024516]
[1610215775984,0.58732608,40651.0,40639.0,0.09097]
[1610215776184,0.58732608,40651.0,40642.0,0.00024517]
[1610215776384,0.13632608,40643.0,40640.0,0.00024517]
[1610215776784,0.13632608,40643.0,40639.0,0.09097]
[1610215776984,0.13632608,40643.0,40641.0,0.00024517]
[1610215777184,0.13632608,40643.0,40640.0,0.00024517]
[1610215777384,0.13632608,40643.0,40639.0,0.09097]
[1610215777984,0.13632608,40643.0,40640.0,0.00024518]
[1610215781492,0.13632608,40643.0,40640.0,0.02028688]
[1610215781691,0.13632608,40643.0,40640.0,0.02028676]
[1610215782391,0.13632608,40643.0,40640.0,0.15661284]
[1610215782792,0.13632608,40643.0,40641.0,0.02028174]
[1610215782992,3.5271,40675.0,40641.0,0.02028174]
[1610215784396,3.5271,40675.0,40648.0,0.13632608]
[1610215784596,3.5271,40675.0,40649.0,0.02028227]
[1610215786399,0.13632608,40650.0,40649.0,0.02028227]
[1610215791710,0.13632608,40650.0,40649.0,0.00024503]
[1610215793917,0.13632608,40650.0,40649.0,0.02029042]
[1610215795717,0.13632608,40650.0,40649.0,0.00024503]
[1610215796718,0.13632608,40650.0,40649.0,0.02029047]
[1610215797018,0.13632608,40650.0,40649.0,0.00024503]
[1610215797721,0.26615959,40650.0,40649.0,0.00024503]
[1610215798322,0.26615959,40650.0,40649.0,0.02029066]
[1610215804532,0.26615959,40650.0,40649.0,0.15661674]
[1610215809040,0.26615959,40650.0,40649.0,0.66171674]
[1610215809440,0.26615959,40650.0,40649.0,0.70528687]
[1610215810440,0.26615959,40650.0,40649.0,0.56896079]
[1610215812942,0.26615959,40650.0,40649.0,0.52539066]
[1610215814444,0.26615959,40650.0,40649.0,0.02029066]
[1610215833573,0.26615959,40650.0,40649.0,4.10159066]
[1610215833774,0.12983351,40650.0,40649.0,4.10159066]
[1610215834174,0.12983351,40650.0,40649.0,4.1451502]
[1610215834775,0.12983351,40650.0,40649.0,4.28147628]
[1610215834975,0.13632608,40667.0,40649.0,4.28147628]
[1610215835176,0.13632608,40667.0,40649.0,6.64321497]
[1610215835577,0.13632608,40667.0,40650.0,2.42670465]
[1610215835976,0.13632608,40667.0,40651.0,0.06445041]
[1610215836679,0.13632608,40667.0,40665.0,0.13632608]
[1610215836879,0.13632608,40667.0,40666.0,3.164]
[1610215837079,0.13632608,40667.0,40666.0,3.18490756]
[1610215839382,0.13632608,40667.0,40666.0,0.02090756]
[1610215840584,0.13632608,40667.0,40666.0,3.47410756]
[1610215840984,0.13632608,40667.0,40666.0,0.02090756]
[1610215841586,0.13632608,40667.0,40666.0,0.00024694]
[1610215841787,0.13632608,40667.0,40666.0,0.02090823]
[1610215842387,0.13632608,40667.0,40666.0,0.00024694]
[1610215843588,0.13632608,40667.0,40666.0,3.72434694]
[1610215843787,0.60356413,40667.0,40666.0,3.74500967]
[1610215844788,0.60356413,40667.0,40666.0,3.88133575]
[1610215845488,0.60356413,40667.0,40666.0,3.86067302]
[1610215848796,0.60356413,40667.0,40666.0,0.13657302]
[1610215850098,0.60356413,40667.0,40666.0,4.22737302]
[1610215852499,0.46723805,40667.0,40666.0,4.22737302]
[1610215852701,0.46723805,40667.0,40666.0,4.24802821]
[1610215857003,0.01711649,40667.0,40666.0,4.24802821]
[1610215860205,0.13632608,40688.0,40666.0,4.24802821]
[1610215860605,0.13632608,40688.0,40667.0,0.02089507]
[1610215860805,0.13632608,40688.0,40687.0,0.13632608]
[1610215861206,0.13632608,40688.0,40687.0,0.23496293]
[1610215863509,0.13632608,40688.0,40687.0,0.25547923]
[1610215867217,0.13632608,40688.0,40687.0,0.23496293]
[1610215867417,0.13632608,40688.0,40687.0,3.97016293]
[1610215869622,0.13632608,40688.0,40687.0,3.99067985]
[1610215874232,0.13632608,40688.0,40687.0,0.25547985]
[1610215880043,0.13632608,40688.0,40687.0,0.11915377]
[1610215886550,0.13632608,40688.0,40687.0,0.09863685]
[1610215887249,0.13632608,40688.0,40687.0,0.11922802]
[1610215887851,0.13632608,40688.0,40687.0,0.09863685]
[1610215888953,0.63862608,40688.0,40687.0,0.09863685]
[1610215901369,0.63862608,40688.0,40687.0,0.00024685]
[1610215901771,2.13862608,40688.0,40679.0,0.00024668]
[1610215901971,2.24618608,40688.0,40679.0,0.00024668]
[1610215902170,2.24618608,40688.0,40666.0,0.0208454]
[1610215902371,2.24618608,40688.0,40680.0,0.0002467]
[1610215902571,2.24618608,40688.0,40666.0,0.0002467]
[1610215902871,2.24618608,40688.0,40681.0,0.0002467]
[1610215903072,1.5,40681.0,40667.0,0.00024672]
[1610215903276,0.4964,40673.0,40667.0,0.00024672]
[1610215903473,1.5,40681.0,40664.0,0.00024672]
[1610215903674,3.5665,40668.0,40649.0,3.9773]
[1610215903873,3.5665,40668.0,40665.0,0.00024673]
[1610215904275,3.5665,40668.0,40650.0,0.02085049]
[1610215904477,3.5665,40668.0,40666.0,0.00024673]
[1610215904675,3.5665,40668.0,40651.0,0.00024675]
[1610215905077,0.13632608,40652.0,40650.0,0.02085051]
[1610215905276,0.13632608,40652.0,40650.0,0.02060376]
[1610215905476,0.13632608,40652.0,40651.0,0.00024675]
[1610215905675,0.13632608,40652.0,40649.0,0.02085461]
[1610215906076,0.13632608,40652.0,40651.0,0.02085461]
[1610215906276,0.13632608,40652.0,40650.0,0.02085471]
[1610215906476,0.13632608,40652.0,40651.0,0.02060813]
[1610215906676,0.13632608,40652.0,40651.0,0.02085488]
[1610215906875,0.13632608,40652.0,40651.0,0.00024675]
[1610215907275,0.13632608,40652.0,40649.0,0.00024675]
[1610215908377,0.13632608,40652.0,40649.0,3.65634675]
[1610215908579,0.13632608,40652.0,40650.0,0.00024676]
[1610215909076,0.13632608,40652.0,40651.0,0.13632608]
[1610215909476,0.13632608,40652.0,40651.0,0.15718013]
[1610215910175,0.13632608,40652.0,40651.0,0.02060729]
[1610215910376,0.13632608,40652.0,40651.0,0.02085405]
[1610215910576,0.13632608,40652.0,40650.0,0.02085656]
[1610215910777,0.13632608,40652.0,40651.0,0.00024678]
[1610215911378,0.13632608,40652.0,40650.0,0.00024678]
[1610215911577,0.13632608,40652.0,40651.0,0.00024678]
[1610215911779,3.34812608,40652.0,40651.0,0.00024678]
[1610215912179,3.34812608,40652.0,40649.0,0.00024678]
[1610215912380,0.13632608,40652.0,40650.0,0.00024678]
[1610215912581,0.13632608,40652.0,40650.0,0.02085606]
[1610215912981,0.13632608,40652.0,40649.0,0.02085624]
[1610215913181,0.13632608,40652.0,40651.0,0.00024678]
[1610215913382,0.13632608,40652.0,40650.0,0.02085682]
[1610215913786,0.13632608,40652.0,40651.0,0.00024678]
[1610215914182,0.13632608,40652.0,40650.0,0.00024678]
[1610215914582,0.13632608,40652.0,40651.0,0.00024678]
[1610215914983,0.13632608,40652.0,40649.0,0.00024678]
[1610215915282,0.13632608,40652.0,40651.0,0.00024678]
[1610215915482,0.13632608,40652.0,40650.0,0.00024678]
[1610215915883,0.13632608,40652.0,40651.0,0.00024678]
[1610215916082,0.13632608,40652.0,40649.0,0.00024678]
[1610215916284,0.13632608,40652.0,40645.0,0.13632608]
[1610215916285,3.24082608,40652.0,40651.0,0.00024678]
[1610215916483,3.48579968,40652.0,40651.0,0.00024678]
[1610215916684,3.48579968,40652.0,40650.0,0.00024678]
[1610215916884,3.48579968,40652.0,40649.0,0.00024678]
[1610215917084,3.48579968,40652.0,40651.0,0.00024678]
[1610215917386,3.48579968,40652.0,40649.0,0.00024678]
[1610215917586,3.48579968,40652.0,40651.0,0.00024678]
[1610215917985,3.48579968,40652.0,40650.0,0.00024678]
[1610215918186,3.48579968,40652.0,40649.0,0.00024678]
[1610215918386,3.48579968,40652.0,40651.0,0.00024678]
[1610215918788,3.48579968,40652.0,40650.0,0.00024678]
[1610215918985,3.48579968,40652.0,40649.0,0.02085854]
[1610215919186,3.48579968,40652.0,40651.0,0.00024678]
[1610215919585,3.48579968,40652.0,40650.0,0.00024678]
[1610215919787,3.48579968,40652.0,40651.0,0.00024678]
[1610215920287,3.48579968,40652.0,40649.0,0.02085854]
[1610215920489,0.38129968,40652.0,40649.0,0.02085854]
[1610215932803,2.7706,40651.0,40649.0,0.02085854]
[1610215935905,0.38129968,40652.0,40649.0,0.02085854]
[1610215938712,3.4074,40650.0,40649.0,0.02085854]
[1610215960041,0.38129968,40652.0,40649.0,0.02085854]
[1610215963044,0.2449736,40652.0,40651.0,4.0623]
[1610215963246,0.2449736,40652.0,40651.0,4.19862608]
[1610215963647,0.2449736,40652.0,40651.0,4.26463692]
[1610215964447,0.2449736,40652.0,40651.0,6.61262157]
[1610215964848,0.1556,40703.0,40651.0,4.26463692]
[1610215965247,0.1556,40703.0,40675.0,0.13632608]
[1610215965449,0.1556,40703.0,40675.0,0.24108608]
[1610215965646,0.1556,40703.0,40681.0,3.6548]
[1610215965847,0.2735,40696.0,40681.0,3.6548]